bitfinex-derivatives/quotes_BNBF0:USTF0_20250115
["timestamp","ask_amount","ask_price","bid_price","bid_amount"]
[1736954153226,0.731,705.01,703.13,0.28444242]
[1736954153227,0.731,705.01,703.17,1.03774433]
[1736954154325,0.731,705.01,703.13,0.28444242]
[1736954154326,0.731,705.01,703.18,1.03774433]
[1736954155030,0.731,705.01,703.19,2.45706066]
[1736954155224,0.731,705.01,703.2,2.45706066]
[1736954155423,0.731,705.01,703.22,1.03774433]
[1736954155624,0.731,705.01,703.23,2.45706066]
[1736954155827,0.731,705.01,703.24,2.45706066]
[1736954156031,0.731,705.01,703.25,2.45706066]
[1736954156331,0.731,705.01,703.26,2.45706066]
[1736954156531,0.731,705.01,703.77,1.03774433]
[1736954157234,0.731,705.01,703.79,1.03774433]
[1736954158229,0.731,705.01,703.34,2.11872801]
[1736954158230,0.731,705.01,703.43,1.03774433]
[1736954159131,0.731,705.01,703.22,1.03774433]
[1736954159631,0.731,705.01,703.23,2.45353607]
[1736954159832,0.731,705.01,703.24,2.45353607]
[1736954160027,0.731,705.01,703.26,1.03774433]
[1736954160232,0.731,705.01,703.27,2.45353607]
[1736954160432,0.731,705.01,703.28,2.45353607]
[1736954160632,0.731,705.01,703.29,2.45353607]
[1736954160826,0.731,705.01,703.26,1.03774433]
[1736954160827,0.731,705.01,703.3,2.45353607]
[1736954161030,0.731,705.01,703.26,1.03774433]
[1736954161031,0.731,705.01,703.31,2.45353607]
[1736954161328,0.731,705.01,703.84,1.03774433]
[1736954162238,0.731,705.01,703.83,1.03774433]
[1736954163340,0.731,705.01,703.69,1.03774433]
[1736954164339,0.731,705.01,703.6,1.03774433]
[1736954165440,0.731,705.01,703.37,1.03774433]
[1736954166635,0.731,705.01,703.42,1.03774433]
[1736954166835,0.731,705.01,703.43,2.4478297]
[1736954167035,0.731,705.01,703.44,2.4478297]
[1736954167237,0.731,705.01,703.43,2.68822381]
[1736954167438,0.731,705.01,703.52,1.03774433]
[1736954167942,0.731,705.01,703.53,2.44780579]
[1736954168242,0.731,705.01,703.55,0.28427261]
[1736954168444,1.358,705.01,703.55,0.28427261]
[1736954171639,2.234,705.01,703.55,0.28427261]
[1736954172846,0.26079661,705.0,703.55,0.28427261]
[1736954174142,0.26080806,704.99,703.55,0.28427261]
[1736954174341,0.26080806,705.0,703.55,0.28427261]
[1736954174545,0.26080806,704.99,703.55,0.28427261]
[1736954174742,0.26080806,704.98,703.55,0.28427261]
[1736954174947,1.503,705.01,703.55,0.28427261]
[1736954175347,0.26078818,705.0,703.55,0.28427261]
[1736954175546,1.503,705.01,703.55,0.28427261]
[1736954184352,0.26077096,705.0,703.55,0.28427261]
[1736954184556,0.876,705.01,703.55,0.28427261]
[1736954199167,1.504,705.01,703.55,0.28427261]
[1736954221779,0.26081379,705.0,703.55,0.28427261]
[1736954222184,0.26085086,704.99,703.55,0.28427261]
[1736954222483,0.26085086,704.98,703.55,0.28427261]
[1736954222782,0.26085086,704.97,703.55,0.28427261]
[1736954223077,1.05804638,704.93,703.55,0.28427261]
[1736954223284,0.26085086,704.92,703.55,0.28427261]
[1736954224081,0.26085086,704.91,703.55,0.28427261]
[1736954224279,0.26085086,704.9,703.55,0.28427261]
[1736954224481,0.26085086,704.89,703.55,0.28427261]
[1736954224682,1.05804638,704.95,703.55,0.28427261]
[1736954225081,1.801,704.97,703.55,0.28427261]
[1736954228584,0.26088064,704.96,703.55,0.28427261]
[1736954230182,0.26088064,704.95,703.55,0.28427261]
[1736954230389,0.26088064,704.94,703.55,0.28427261]
[1736954230583,0.26088064,704.96,703.55,0.28427261]
[1736954230787,0.26093126,704.93,703.55,0.28427261]
[1736954230986,1.05804638,704.8,703.55,0.28427261]
[1736954231181,0.26093126,704.79,703.55,0.28427261]
[1736954231383,1.05804638,704.8,703.55,0.28427261]
[1736954231788,0.28370806,704.95,703.55,0.28427261]
[1736954233389,1.801,704.97,703.55,0.28427261]
[1736954262021,1.801,704.97,703.56,1.60398808]
[1736954262223,1.801,704.97,703.55,0.28427261]
[1736954264423,1.801,704.97,703.56,1.60355005]
[1736954264616,1.801,704.97,703.55,0.28427261]
[1736954265522,1.801,704.97,703.56,2.45349144]
[1736954265723,1.801,704.97,703.57,2.45349144]
[1736954265921,1.801,704.97,703.58,2.45349144]
[1736954266124,1.801,704.97,703.57,2.69835836]
[1736954266125,1.801,704.97,703.6,0.28425241]
[1736954266323,1.801,704.97,703.61,1.60267001]
[1736954266718,1.801,704.97,703.63,0.28424029]
[1736954266919,1.801,704.97,703.69,1.03383094]
[1736954267122,1.801,704.97,703.71,0.28420798]
[1736954267825,1.801,704.97,703.72,1.03383094]
[1736954268727,1.801,704.97,703.79,1.03383094]
[1736954269726,1.801,704.97,703.96,1.03383094]
[1736954270730,1.801,704.97,703.75,1.03383094]
[1736954271428,1.801,704.97,703.74,0.28419586]
[1736954295544,0.26082298,704.96,703.74,0.28419586]
[1736954295940,0.26085494,704.95,703.74,0.28419586]
[1736954296147,0.26085494,704.94,703.74,0.28419586]
[1736954296347,0.26085494,704.93,703.74,0.28419586]
[1736954296649,0.26085494,704.92,703.74,0.28419586]
[1736954296946,0.26085494,704.91,703.74,0.28419586]
[1736954297141,1.538,704.92,703.74,0.28419586]
[1736954297549,0.2608702,704.91,703.74,0.28419586]
[1736954297846,0.28372818,704.9,703.74,0.28419586]
[1736954298046,0.2608702,704.89,703.74,0.28419586]
[1736954298244,0.28373623,704.88,703.74,0.28419586]
[1736954298441,0.2608702,704.87,703.74,0.28419586]
[1736954298646,0.28373623,704.88,703.74,0.28419586]
[1736954298846,0.26092132,704.87,703.74,0.28419586]
[1736954299545,0.26095054,704.86,702.37,2.46309945]
[1736954299848,0.26095054,704.85,702.49,0.28470156]
[1736954300048,0.54470288,704.84,702.49,0.28470156]
[1736954300248,0.26095054,704.83,702.49,0.28470156]
[1736954301143,0.28375234,704.84,702.49,0.28470156]
[1736954310056,1.14175234,704.84,702.49,0.28470156]
[1736954318570,2.19064159,704.84,702.49,0.28470156]
[1736954319171,1.04888925,704.75,702.49,0.28470156]
[1736954319569,1.04888925,704.79,702.49,0.28470156]
[1736954320174,1.14175234,704.84,702.49,0.28470156]
[1736954320175,1.04888925,704.81,702.49,0.28470156]
[1736954321076,0.28376844,704.8,702.49,0.28470156]
[1736954322276,0.28376844,704.8,702.5,1.59292992]
[1736954322471,0.28376844,704.8,702.51,1.59310401]
[1736954322679,0.28376844,704.8,702.62,0.28464888]
[1736954325780,1.04888925,704.77,702.62,0.28464888]
[1736954326281,1.68388925,704.77,702.62,0.28464888]
[1736954326877,1.04888925,704.72,702.62,0.28464888]
[1736954327277,1.04888925,704.72,702.63,1.59536509]
[1736954327481,1.04888925,704.72,702.73,0.28460432]
[1736954327683,1.04888925,704.74,702.73,0.28460432]
[1736954329785,0.635,704.77,702.73,0.28460432]
[1736954332884,0.26088914,704.76,702.73,0.28460432]
[1736954333384,1.33188914,704.76,702.73,0.28460432]
[1736954333586,0.26088914,704.75,702.73,0.28460432]
[1736954334085,0.26091091,704.74,702.73,0.28460432]
[1736954334281,0.26091091,704.73,702.73,0.28460432]
[1736954334484,2.11988925,704.76,702.73,0.28460432]
[1736954335186,1.071,704.76,702.73,0.28460432]
[1736954338488,0.26095443,704.75,702.73,0.28460432]
[1736954338687,0.26095443,704.74,702.73,0.28460432]
[1736954338887,0.26095443,704.73,702.73,0.28460432]
[1736954339087,1.071,704.76,702.73,0.28460432]
[1736954339088,0.26095443,704.72,702.73,0.28460432]
[1736954339383,1.04888925,704.58,702.73,1.31955746]
[1736954339784,0.26093597,704.57,702.73,1.31955746]
[1736954339990,0.26093597,704.57,702.84,1.03495314]
[1736954340290,1.04888925,704.63,702.86,0.28455168]
[1736954340788,1.071,704.76,702.86,0.28455168]
[1736954340789,2.11988925,704.76,702.98,1.03495314]
[1736954340987,0.2608773,704.75,703.0,0.28449502]
[1736954341388,0.2608773,704.74,703.0,0.28449502]
[1736954341584,0.26087953,704.75,703.0,0.28449502]
[1736954341990,0.26087953,704.75,703.0,1.31944816]
[1736954342891,0.26087953,704.75,703.01,1.03495314]
[1736954343092,0.26087953,704.75,703.03,0.28448288]
[1736954343290,0.26087953,704.74,703.03,0.28448288]
[1736954343487,0.26087953,704.73,703.03,0.28448288]
[1736954343692,1.04888925,704.74,703.03,0.28448288]
[1736954344086,0.26092239,704.73,703.03,0.28448288]
[1736954344286,0.26092451,704.72,703.03,0.28448288]
[1736954344490,0.26092451,704.73,703.03,0.28448288]
[1736954344689,0.26092451,704.72,703.03,0.28448288]
[1736954344886,0.26092451,704.71,703.03,0.28448288]
[1736954345187,0.26092451,704.7,703.03,0.28448288]
[1736954345390,1.071,704.76,703.03,0.28448288]
[1736954345391,0.26092451,704.69,703.03,0.28448288]
[1736954345590,0.26092451,704.68,703.03,0.28448288]
[1736954345792,0.26092451,704.67,703.03,0.28448288]
[1736954345991,0.26092451,704.66,703.03,0.28448288]
[1736954346191,0.26092451,704.65,703.03,0.28448288]
[1736954346390,0.26092451,704.64,703.03,0.28448288]
[1736954346691,1.04888925,704.6,703.03,0.28448288]
[1736954346891,0.26092451,704.59,703.03,0.28448288]
[1736954347094,1.04888925,704.6,703.03,0.28448288]
[1736954347295,0.26102925,704.59,703.03,0.28448288]
[1736954347698,1.04888925,704.57,703.03,0.28448288]
[1736954347898,0.26102925,704.56,703.03,0.28448288]
[1736954349298,0.26102925,704.55,703.03,0.28448288]
[1736954349496,0.26102925,704.54,703.03,0.28448288]
[1736954349802,0.26102925,704.53,703.03,0.28448288]
[1736954350100,0.54491047,704.52,703.03,0.28448288]
[1736954350300,0.26102925,704.51,703.03,0.28448288]
[1736954350495,0.26108458,704.5,703.03,0.28448288]
[1736954350900,0.26108458,704.49,703.03,0.28448288]
[1736954351101,0.26108458,704.51,703.03,0.28448288]
[1736954351300,0.28388122,704.52,703.03,0.28448288]
[1736954351301,0.26108458,704.5,703.03,0.28448288]
[1736954351596,0.26108458,704.49,703.03,0.28448288]
[1736954351901,0.26108458,704.48,703.03,0.28448288]
[1736954352102,0.28388122,704.52,703.03,0.28448288]
[1736954352103,0.26108458,704.47,703.03,0.28448288]
[1736954352302,0.26108458,704.46,703.03,0.28448288]
[1736954352501,0.26108458,704.45,703.03,0.28448288]
[1736954352701,0.26108458,704.44,703.03,0.28448288]
[1736954352901,0.26108458,704.5,703.03,0.28448288]
[1736954353101,0.26108458,704.49,703.03,0.28448288]
[1736954353299,1.04888925,704.47,703.03,0.28448288]
[1736954353701,0.2610819,704.46,703.03,0.28448288]
[1736954354102,0.2610819,704.51,703.03,0.28448288]
[1736954354305,0.635,704.46,703.03,0.28448288]
[1736954354497,0.26109443,704.45,703.03,0.28448288]
[1736954356506,0.26109408,704.44,703.03,0.28448288]
[1736954356707,0.54501157,704.43,703.03,0.28448288]
[1736954356901,0.26109408,704.42,703.03,0.28448288]
[1736954357305,0.28391749,704.43,703.03,0.28448288]
[1736954358505,0.2611057,704.42,703.03,0.28448288]
[1736954359307,0.28391749,704.43,703.03,0.28448288]
[1736954359504,0.26111284,704.42,703.03,0.28448288]
[1736954362008,0.28391749,704.43,703.03,0.28448288]
[1736954362009,0.26112613,704.41,703.03,0.28448288]
[1736954362308,0.26112613,704.4,703.03,0.28448288]
[1736954362511,0.26112613,704.39,703.03,0.28448288]
[1736954362711,0.26113336,704.38,703.03,0.28448288]
[1736954362909,0.26113336,704.37,703.03,0.28448288]
[1736954363110,0.26113336,704.36,703.03,0.28448288]
[1736954363310,0.26113336,704.35,703.03,0.28448288]
[1736954363613,0.54508713,704.34,703.03,0.28448288]
[1736954363811,0.26113336,704.33,703.03,0.28448288]
[1736954364508,1.30413336,704.33,703.03,0.28448288]
[1736954364713,1.043,704.33,703.03,0.28448288]
[1736954364912,0.26113726,704.32,703.03,0.28448288]
[1736954365614,1.043,704.33,703.03,0.28448288]
[1736954369417,0.26109173,704.32,703.03,0.28448288]
[1736954369612,1.043,704.33,703.03,0.28448288]
[1736954372918,0.26111927,704.32,703.03,0.28448288]
[1736954373619,0.26109378,704.31,703.03,0.28448288]
[1736954373823,0.26109378,704.3,703.03,0.28448288]
[1736954374119,0.26109378,704.29,703.03,0.28448288]
[1736954374316,1.043,704.33,703.03,0.28448288]
[1736954377322,0.26109992,704.32,703.03,0.28448288]
[1736954377523,0.54506175,704.32,703.03,0.28448288]
[1736954377723,0.26109992,704.31,703.03,0.28448288]
[1736954378423,0.28396989,704.3,703.03,0.28448288]
[1736954378623,0.26109992,704.29,703.03,0.28448288]
[1736954378827,0.26111006,704.29,703.03,0.28448288]
[1736954379021,1.06006611,704.27,703.03,0.28448288]
[1736954379223,0.26111006,704.26,703.03,0.28448288]
[1736954379625,0.26113531,704.25,703.03,0.28448288]
[1736954379822,0.26113531,704.24,703.03,0.28448288]
[1736954380023,0.26113531,704.23,703.03,0.28448288]
[1736954380326,0.28396989,704.3,703.03,0.28448288]
[1736954380327,1.06006611,704.17,703.03,0.28448288]
[1736954380525,0.26113531,704.16,703.03,0.28448288]
[1736954381530,1.06006611,703.97,703.03,0.28448288]
[1736954382321,1.344036,704.3,703.03,0.28448288]
[1736954382322,1.06006611,703.96,703.03,0.28448288]
[1736954384526,0.83761627,704.29,703.03,0.28448288]
[1736954384527,1.06006611,703.98,703.03,0.28448288]
[1736954385630,1.06006611,704.2,703.03,0.28448288]
[1736954385631,1.06006611,703.97,703.03,0.28448288]
[1736954386535,1.06006611,704.1,703.03,0.28448288]
[1736954387534,0.28396989,704.3,703.03,0.28448288]
[1736954387535,1.06006611,704.09,703.03,0.28448288]
[1736954388434,1.06006611,704.18,703.03,0.28448288]
[1736954388934,0.26110698,704.17,703.03,0.28448288]
[1736954389334,1.06006611,704.15,703.03,0.28448288]
[1736954389735,1.91106611,704.15,703.03,0.28448288]
[1736954391528,0.851,704.15,703.03,0.28448288]
[1736954396838,1.486,704.15,703.03,0.28448288]
[1736954399543,0.26112321,704.14,703.03,0.28448288]
[1736954400342,1.486,704.15,703.03,0.28448288]
[1736954401342,0.26112755,704.14,703.03,0.28448288]
[1736954401540,1.486,704.15,703.03,0.28448288]
[1736954401937,0.26112256,704.14,703.03,0.28448288]
[1736954402441,0.26113081,704.13,703.03,0.28448288]
[1736954402637,0.26113081,704.12,703.03,0.28448288]
[1736954402837,0.26113081,704.11,703.03,0.28448288]
[1736954403043,0.26113081,704.1,703.03,0.28448288]
[1736954403338,0.26113081,704.09,703.03,0.28448288]
[1736954403544,0.26116168,704.08,703.03,0.28448288]
[1736954403742,0.635,704.15,703.03,0.28448288]
[1736954403937,1.765,704.15,703.03,0.28448288]
[1736954407143,0.26120606,704.14,703.03,0.28448288]
[1736954407840,0.26120606,704.14,701.94,1.04482273]
[1736954408046,0.26120955,704.13,701.94,1.04482273]
[1736954408242,0.26120955,704.14,702.04,0.28488405]
[1736954408548,0.54524817,704.13,702.04,0.28488405]
[1736954408742,0.54525221,704.12,702.04,0.28488405]
[1736954408942,0.54525624,704.11,702.04,0.28488405]
[1736954409142,0.28404652,704.11,702.04,0.28488405]
[1736954409445,0.52242581,704.1,702.05,1.62362416]
[1736954409646,0.26121699,704.09,702.15,0.28483942]
[1736954411543,1.06006611,704.08,702.15,0.28483942]
[1736954411750,0.26121699,704.07,702.15,0.28483942]
[1736954412049,0.26125386,704.06,702.15,0.28483942]
[1736954412249,0.26125386,704.07,702.15,0.28483942]
[1736954412549,0.26125386,704.06,702.15,0.28483942]
[1736954412749,0.26125386,704.07,702.15,0.28483942]
[1736954412950,0.26125386,704.06,702.15,0.28483942]
[1736954413151,0.26125386,704.05,702.15,0.28483942]
[1736954413348,0.26125386,704.04,702.15,0.28483942]
[1736954413551,0.26125386,704.03,702.15,0.28483942]
[1736954413754,0.26125386,704.02,702.15,0.28483942]
[1736954413952,0.26125386,704.01,702.15,0.28483942]
[1736954414246,0.26125386,704.0,702.15,0.28483942]
[1736954414452,0.26125386,703.99,702.15,0.28483942]
[1736954414647,0.26125386,704.07,702.15,0.28483942]
[1736954414852,0.26125817,704.06,702.15,0.28483942]
[1736954415153,0.26125817,704.05,702.15,0.28483942]
[1736954415349,0.26125817,704.04,702.15,0.28483942]
[1736954415549,0.26125817,704.03,702.15,0.28483942]
[1736954415753,0.26125817,704.02,702.15,0.28483942]
[1736954416052,0.26125817,704.01,702.15,0.28483942]
[1736954416453,0.26125817,704.0,702.15,0.28483942]
[1736954416650,0.26125817,703.99,702.15,0.28483942]
[1736954416955,0.635,704.08,702.15,0.28483942]
[1736954416956,0.26125817,703.98,702.15,0.28483942]
[1736954417148,0.26125817,703.97,702.15,0.28483942]
[1736954417354,0.26125817,703.96,702.15,0.28483942]
[1736954417654,0.26128902,703.95,702.15,0.28483942]
[1736954417954,0.635,704.08,702.15,0.28483942]
[1736954417955,0.26128902,704.07,702.15,0.28483942]
[1736954418156,0.26128902,704.06,702.15,0.28483942]
[1736954418457,0.26128902,704.05,702.15,0.28483942]
[1736954418663,0.26128902,704.04,702.15,0.28483942]
[1736954418956,0.26128902,704.03,702.15,0.28483942]
[1736954419258,0.26128902,704.02,702.15,0.28483942]
[1736954419555,0.26128902,704.01,702.15,0.28483942]
[1736954419756,0.26128902,704.0,702.15,0.28483942]
[1736954419953,0.26128902,703.99,702.15,0.28483942]
[1736954420151,0.26128902,704.07,702.15,0.28483942]
[1736954420354,0.26121151,704.06,702.15,0.28483942]
[1736954420552,0.26121151,704.07,702.15,0.28483942]
[1736954421150,1.05321151,704.07,702.15,0.28483942]
[1736954421356,0.26121151,704.06,702.15,0.28483942]
[1736954422151,0.26121151,704.05,702.15,0.28483942]
[1736954422356,0.26121151,704.04,702.15,0.28483942]
[1736954422557,0.792,704.07,702.15,0.28483942]
[1736954422558,0.26121151,704.03,702.15,0.28483942]
[1736954422756,0.26121151,704.06,702.15,0.28483942]
[1736954423052,0.792,704.07,702.16,1.62017111]
[1736954423255,0.26123327,704.06,702.17,0.85296045]
[1736954423455,0.26123327,704.06,702.18,1.62017111]
[1736954423655,0.26123327,704.05,702.19,0.85294803]
[1736954423953,0.26123327,704.04,702.2,1.62017111]
[1736954424150,0.26123327,704.03,702.2,1.62017111]
[1736954424350,0.792,704.07,702.19,2.72510189]
[1736954424875,0.792,704.07,702.15,0.28483942]
[1736954427653,0.26121635,704.06,702.15,0.28483942]
[1736954428258,0.792,704.07,702.15,0.28483942]
[1736954428657,0.26118062,704.06,702.15,0.28483942]
[1736954429460,0.26118062,704.06,702.16,2.47098322]
[1736954429656,0.26118062,704.06,702.17,2.47098322]
[1736954429861,0.26118062,704.06,702.18,5.19249875]
[1736954430058,0.26118062,704.06,702.19,2.47098322]
[1736954430356,0.26118062,704.06,702.2,2.47098322]
[1736954430559,0.26118062,704.06,702.21,2.47098322]
[1736954430756,0.26118062,704.06,702.33,1.04482273]
[1736954430954,0.26118062,704.06,702.34,1.61825608]
[1736954431356,0.635,704.06,702.34,1.61825608]
[1736954431659,0.635,704.06,702.41,1.04482273]
[1736954432364,0.635,704.06,702.42,1.04482273]
[1736954433154,0.635,704.06,702.44,0.28472182]
[1736954433763,0.26116746,704.05,702.44,0.28472182]
[1736954434563,0.26121651,704.04,702.44,0.28472182]
[1736954435063,0.26121651,704.03,702.44,0.28472182]
[1736954435265,1.32128262,704.02,702.44,0.28472182]
[1736954435462,0.26121651,704.01,702.44,0.28472182]
[1736954436158,1.06006611,703.99,702.44,0.28472182]
[1736954436363,0.26121651,703.98,702.44,0.28472182]
[1736954436962,1.06006611,703.99,702.44,0.28472182]
[1736954437163,0.26123049,703.97,702.44,0.28472182]
[1736954440365,0.26124517,703.96,702.44,0.28472182]
[1736954441367,1.06006611,703.86,702.44,0.28472182]
[1736954441659,0.26124517,703.85,702.44,0.28472182]
[1736954442264,1.06006611,703.89,702.44,0.28472182]
[1736954443065,0.821,703.96,702.44,0.28472182]
[1736954450068,0.26121187,703.95,702.44,0.28472182]
[1736954450575,0.821,703.96,702.44,0.28472182]
[1736954450974,1.06006611,703.93,702.44,0.28472182]
[1736954452374,0.821,703.96,702.44,0.28472182]
[1736954459579,0.26124317,703.95,702.44,0.28472182]
[1736954459884,0.635,704.06,702.44,0.28472182]
[1736954460082,0.26124363,704.05,702.44,0.28472182]
[1736954460276,1.06006611,704.02,702.44,0.28472182]
[1736954460478,0.26124363,704.01,702.44,0.28472182]
[1736954461082,1.19124363,704.01,702.44,0.28472182]
[1736954461286,1.06006611,703.99,702.44,0.28472182]
[1736954461485,0.26124363,703.98,702.44,0.28472182]
[1736954461784,0.26125547,703.97,702.44,0.28472182]
[1736954461985,0.26125547,703.96,702.44,0.28472182]
[1736954462286,0.26125547,703.95,702.44,0.28472182]
[1736954462483,1.06006611,703.97,702.44,0.28472182]
[1736954462687,0.26125547,703.96,702.44,0.28472182]
[1736954463582,1.06006611,703.91,702.44,0.28472182]
[1736954463788,0.26125547,703.9,702.44,0.28472182]
[1736954464188,1.06006611,703.86,702.44,0.28472182]
[1736954464485,0.26129339,703.85,702.44,0.28472182]
[1736954465390,1.06006611,703.8,702.44,0.28472182]
[1736954465689,0.26129339,703.79,702.44,0.28472182]
[1736954466389,1.06006611,703.73,702.44,0.28472182]
[1736954467592,1.06006611,703.8,702.44,0.28472182]
[1736954467891,0.26130591,703.79,702.44,0.28472182]
[1736954468591,1.06006611,703.78,702.44,0.28472182]
[1736954469688,1.06006611,703.98,702.44,0.28472182]
[1736954469893,0.26123515,703.97,702.44,0.28472182]
[1736954470392,1.06006611,703.98,702.44,0.28472182]
[1736954470592,1.06006611,703.94,702.44,0.28472182]
[1736954470789,1.06006611,703.94,702.45,2.47208338]
[1736954470985,1.06006611,703.94,702.46,2.47208338]
[1736954471192,1.06006611,703.94,702.47,2.47208338]
[1736954471384,0.635,703.99,702.48,1.61934046]
[1736954471590,0.635,703.99,702.58,1.04482273]
[1736954471887,0.635,703.99,702.59,1.61934046]
[1736954472089,0.635,703.99,702.58,1.04482273]
[1736954472290,0.635,703.99,702.63,1.04482273]
[1736954473788,0.635,703.99,702.64,1.04482273]
[1736954474695,0.635,703.99,702.57,1.04482273]
[1736954475289,0.635,703.99,702.53,1.04482273]
[1736954475490,0.635,703.99,702.54,4.32500495]
[1736954475693,0.635,703.99,702.54,2.71284677]
[1736954476293,0.635,703.99,702.55,1.61150785]
[1736954477190,0.635,703.99,702.46,1.04482273]
[1736954477394,0.635,703.99,702.47,2.46349323]
[1736954477593,0.635,703.99,702.48,5.17414025]
[1736954477792,0.635,703.99,702.49,2.46349323]
[1736954477992,0.635,703.99,702.5,2.46349323]
[1736954478194,0.635,703.99,702.51,2.4634467]
[1736954478389,0.635,703.99,702.52,2.4634346]
[1736954478690,0.635,703.99,702.53,1.60944171]
[1736954478891,0.635,703.99,702.48,2.71064702]
[1736954479089,0.635,703.99,702.45,2.71064702]
[1736954481194,0.635,703.99,702.44,0.28472182]
[1736954487097,0.635,703.99,702.45,1.60338522]
[1736954487300,0.635,703.99,702.47,0.28470966]
[1736954487496,0.635,703.99,702.48,5.15116293]
[1736954487700,0.635,703.99,702.49,2.45543685]
[1736954488000,0.635,703.99,702.5,2.45543685]
[1736954488198,0.635,703.99,702.51,2.45543685]
[1736954488394,0.635,703.99,702.48,2.69572608]
[1736954488395,0.635,703.99,702.52,2.45543685]
[1736954488599,0.635,703.99,702.53,2.45543685]
[1736954488800,0.635,703.99,702.54,2.45543685]
[1736954489002,0.635,703.99,702.55,5.15116293]
[1736954489301,0.635,703.99,702.56,1.60338522]
[1736954490799,0.635,703.99,702.47,0.28470966]
[1736954492197,1.735,703.99,702.47,0.28470966]
[1736954503003,1.735,703.99,702.48,1.59951619]
[1736954503710,1.735,703.99,702.5,0.2846975]
[1736954503912,1.735,703.99,702.51,1.59951619]
[1736954504305,1.735,703.99,702.53,0.28468535]
[1736954504812,1.735,703.99,702.59,1.04482273]
[1736954505712,1.735,703.99,702.67,1.04482273]
[1736954506408,1.735,703.99,702.69,0.28462052]
[1736954506608,1.735,703.99,702.79,1.04482273]
[1736954507812,1.735,703.99,702.76,1.04482273]
[1736954509012,1.735,703.99,702.87,1.04482273]
[1736954509612,1.735,703.99,702.84,1.04482273]
[1736954510208,1.735,703.99,702.86,0.28455168]
[1736954514317,1.735,703.99,702.87,1.04482273]
[1736954515112,1.735,703.99,702.86,0.28455168]
[1736954516921,1.735,703.99,702.98,1.04482273]
[1736954517619,1.735,703.99,703.0,0.28449502]
[1736954523526,1.735,703.99,703.0,1.32931775]
[1736954524624,1.735,703.99,703.04,1.04482273]
[1736954525625,1.735,703.99,703.03,1.04482273]
[1736954526827,1.735,703.99,703.05,0.28447478]
[1736954527726,1.735,703.99,703.06,1.04482273]
[1736954528429,1.735,703.99,703.05,0.28447478]
[1736954531727,1.035,703.99,703.05,0.28447478]
[1736954531930,1e-08,703.99,703.05,0.28447478]
[1736954532628,1e-08,703.99,703.06,2.46218355]
[1736954532828,1e-08,703.99,703.05,0.28447478]
[1736954532829,1e-08,703.99,703.07,5.17247987]
[1736954533029,1e-08,703.99,703.08,2.46218355]
[1736954533232,1e-08,703.99,703.23,1.04482273]
[1736954534135,1e-08,703.99,703.2,1.04482273]
[1736954535338,1e-08,703.99,703.23,1.04482273]
[1736954536236,1e-08,703.99,703.24,1.04482273]
[1736954537334,1e-08,703.99,703.19,1.04482273]
[1736954538135,1e-08,703.99,703.13,1.04482273]
[1736954538933,1e-08,703.99,703.05,0.28447478]
[1736954538934,1e-08,703.99,703.14,1.04482273]
[1736954539841,1e-08,703.99,703.12,1.04482273]
[1736954540841,1e-08,703.99,703.1,1.04482273]
[1736954541743,1e-08,703.99,703.05,1.32929751]
[1736954542344,1e-08,703.99,703.06,2.46134452]
[1736954542539,1e-08,703.99,703.07,1.6095339]
[1736954542739,1e-08,703.99,703.06,2.70887105]
[1736954543645,1e-08,703.99,703.15,1.04482273]
[1736954544439,1e-08,703.99,703.05,0.28447478]
[1736954545939,1e-08,703.99,703.06,1.61062927]
[1736954546145,1e-08,703.99,703.13,1.04482273]
[1736954547044,1e-08,703.99,703.05,0.28447478]
[1736954547045,1e-08,703.99,703.14,1.04482273]
[1736954547945,1e-08,703.99,703.05,0.28447478]
[1736954586668,1.05612874,703.91,703.05,0.28447478]
[1736954586868,0.26118981,703.9,702.09,1.03807552]
[1736954587069,0.26118981,703.9,702.11,0.28485564]
[1736954587674,1.31731855,703.9,702.11,0.28485564]
[1736954587869,0.26118981,703.89,702.11,0.28485564]
[1736954588576,1.05612874,703.88,702.11,0.28485564]
[1736954588875,0.2612197,703.87,702.11,0.28485564]
[1736954590476,1.2512197,703.87,702.11,0.28485564]
[1736954590675,0.99,703.87,702.11,0.28485564]
[1736954597382,0.26119741,703.86,702.11,0.28485564]
[1736954598281,0.99,703.87,702.11,0.28485564]
[1736954603393,0.26122698,703.86,702.12,1.60993694]
[1736954603593,0.26122698,703.86,702.11,0.28485564]
[1736954603789,0.26122698,703.85,702.11,0.28485564]
[1736954603993,0.26122698,703.84,702.11,0.28485564]
[1736954604190,1.05612874,703.77,702.25,1.03807552]
[1736954604391,0.26122698,703.76,702.25,1.03807552]
[1736954604796,1.19522698,703.76,702.25,1.03807552]
[1736954604998,0.26122698,703.75,702.26,1.03807552]